Workbook

Sheet 0-ScatterPlots
B2: x | C2: y
B3: 5 | C3: 5
B4: 20 | C4: 5
B5: 20 | C5: 3
B6: 26 | C6: 7
B7: 20 | C7: 11
B8: 20 | C8: 9
B9: 5 | C9: 9
B10: 5 | C10: 5
B18: x | C18: y
B19: 0 | C19: 0
B20: 10 | C20: 0
B21: 8 | C21: -1
B22: 10 | C22: 0
B23: 8 | C23: 1

Sheet 1-"Live" Arrow
A1: L: | B1: 15 | D1: x orig | E1: y orig | F1: x rot | G1: y rot | H1: x fin | I1: y fin
A2: Angle: | B2: 40 | C2: “deg” | D2: 0 | E2: 0 | F2: =D2*B$8-E2*B$7 -> 0 | G2: =E2*B$8+D2*B$7 -> 0 | H2: =F2+B$3 -> 0 | I2: =G2+B$4 -> 0
A3: offset x | B3: 0 | D3: =B1 -> 15 | E3: 0 | F3: =D3*B$8-E3*B$7 -> 11.49066665 | G3: =E3*B$8+D3*B$7 -> 9.641814145 | H3: =F3+B$3 -> 11.49066665 | I3: =G3+B$4 -> 9.641814145
A4: offset y | B4: 0 | D4: =0.8*B1 -> 12 | E4: =-B1/10 -> -1.5 | F4: 10.15671473 | G4: 6.564384652 | H4: 10.15671473 | I4: 6.564384652
D5: =B1 -> 15 | E5: 0 | F5: 11.49066665 | G5: 9.641814145 | H5: 11.49066665 | I5: 9.641814145
A6: Angle: | B6: =B2*PI()/180 -> 0.6981317008 | C6: “rad” | D6: =0.8*B1 -> 12 | E6: =B1/10 -> 1.5 | F6: 8.228351903 | G6: 8.862517981 | H6: 8.228351903 | I6: 8.862517981
A7: sine: | B7: =SIN(B6) -> 0.6427876097
A8: cosine: | B8: =COS(B6) -> 0.7660444431

Sheet 2-Clock+slider
B2: User Inputs and Controls: | I2: Sec. Hand coords | M2: Drawing Data: every "line" needs an x and y column:
B3: Radius | C3: 10 | D3: cm | F3: Frame # | G3: Time | H3: theta | I3: Tipx | J3: Tip y | M3: THIS drawing has exactly three drawing series/lines.
B4: arrow fraction | C4: 0.1 | D4: like a % | F4: 0 | G4: 0 | H4: =C$21*G4 -> 0 | I4: =C$3*SIN(H4) -> 0 | J4: =C$3*COS(H4) -> 10
B5: Time step | C5: 0.5 | D5: s | F5: 1 | G5: =G4+C$5 -> 0.5 | H5: 0.05235987756 | I5: 0.5233595624 | J5: 9.986295348 | M5: Outer Circle | P5: Inner Circle | S5: Arrow
F6: 2 | G6: 1 | H6: 0.1047197551 | I6: 1.045284633 | J6: 9.945218954 | L6: angle | M6: x | N6: y | P6: x | Q6: y | S6: x | T6: y | U6: Description
B7: Form Control Slider: | F7: 3 | G7: 1.5 | H7: 0.1570796327 | I7: 1.56434465 | J7: 9.876883406 | L7: 0 | M7: =($C$3+1)*COS($L7*PI()/180) -> 11 | N7: =($C$3+1)*SIN($L7*PI()/180) -> 0 | P7: =($C$3/10)*COS($L7*PI()/180) -> 1 | Q7: =($C$3/10)*SIN($L7*PI()/180) -> 0 | S7: 0 | T7: 0 | U7: base
B8: Cannot "live update". Cannot color. | F8: 4 | G8: 2 | H8: 0.2094395102 | I8: 2.079116908 | J8: 9.781476007 | L8: 10 | M8: 10.83288528 | N8: 1.910129954 | P8: 0.984807753 | Q8: 0.1736481777 | S8: =C22 -> 5 | T8: =C23 -> 8.660254038 | U8: tip
F9: 5 | G9: 2.5 | H9: 0.2617993878 | I9: 2.588190451 | J9: 9.659258263 | L9: 20 | M9: 10.33661883 | N9: 3.762221577 | P9: 0.9396926208 | Q9: 0.3420201433 | S9: =S8-$C$4*$C$3*SIN($C$24-PI()/6) -> 5 | T9: =T8-$C$4*$C$3*COS($C$24-PI()/6) -> 7.660254038 | U9: right wing using 30deg arrowhead
F10: 6 | G10: 3 | H10: 0.3141592654 | I10: 3.090169944 | J10: 9.510565163 | L10: 30 | M10: 9.526279442 | N10: 5.5 | P10: 0.8660254038 | Q10: 0.5 | S10: =S8 -> 5 | T10: =T8 -> 8.660254038 | U10: tip
F11: 7 | G11: 3.5 | H11: 0.3665191429 | I11: 3.583679495 | J11: 9.335804265 | L11: 40 | M11: 8.426488874 | N11: 7.070663707 | P11: 0.7660444431 | Q11: 0.6427876097 | S11: =S10-$C$4*$C$3*SIN($C$24+PI()/6) -> 4.133974596 | T11: =T10-$C$4*$C$3*COS($C$24+PI()/6) -> 8.160254038 | U11: left wing using 30deg arrowhead
F12: 8 | G12: 4 | H12: 0.4188790205 | I12: 4.067366431 | J12: 9.135454576 | L12: 50 | M12: 7.070663707 | N12: 8.426488874 | P12: 0.6427876097 | Q12: 0.7660444431
B13: ActiveX Slider (can "hold" on "right") | F13: 9 | G13: 4.5 | H13: 0.471238898 | I13: 4.539904997 | J13: 8.910065242 | L13: 60 | M13: 5.5 | N13: 9.526279442 | P13: 0.5 | Q13: 0.8660254038
B14: Cannot be used on a mac… | F14: 10 | G14: 5 | H14: 0.5235987756 | I14: 5 | J14: 8.660254038 | L14: 70 | M14: 3.762221577 | N14: 10.33661883 | P14: 0.3420201433 | Q14: 0.9396926208
F15: 11 | G15: 5.5 | H15: 0.5759586532 | I15: 5.44639035 | J15: 8.386705679 | L15: 80 | M15: 1.910129954 | N15: 10.83288528 | P15: 0.1736481777 | Q15: 0.984807753
F16: 12 | G16: 6 | H16: 0.6283185307 | I16: 5.877852523 | J16: 8.090169944 | L16: 90 | M16: 6.738316502e-16 | N16: 11 | P16: 6.125742275e-17 | Q16: 1
F17: 13 | G17: 6.5 | H17: 0.6806784083 | I17: 6.29320391 | J17: 7.771459615 | L17: 100 | M17: -1.910129954 | N17: 10.83288528 | P17: -0.1736481777 | Q17: 0.984807753
F18: 14 | G18: 7 | H18: 0.7330382858 | I18: 6.691306064 | J18: 7.431448255 | L18: 110 | M18: -3.762221577 | N18: 10.33661883 | P18: -0.3420201433 | Q18: 0.9396926208
B19: Global Calculations | F19: 15 | G19: 7.5 | H19: 0.7853981634 | I19: 7.071067812 | J19: 7.071067812 | L19: 120 | M19: -5.5 | N19: 9.526279442 | P19: -0.5 | Q19: 0.8660254038
B20: Current Index: | C20: 10 | D20: from slider! | F20: 16 | G20: 8 | H20: 0.837758041 | I20: 7.431448255 | J20: 6.691306064 | L20: 130 | M20: -7.070663707 | N20: 8.426488874 | P20: -0.6427876097 | Q20: 0.7660444431
B21: Omega | C21: =2*PI()/60 -> 0.1047197551 | D21: rad/s | F21: 17 | G21: 8.5 | H21: 0.8901179185 | I21: 7.771459615 | J21: 6.29320391 | L21: 140 | M21: -8.426488874 | N21: 7.070663707 | P21: -0.7660444431 | Q21: 0.6427876097
B22: Current x: | C22: =VLOOKUP($C$20,$F$4:$J$124,4,1) -> 5 | D22: cm | F22: 18 | G22: 9 | H22: 0.9424777961 | I22: 8.090169944 | J22: 5.877852523 | L22: 150 | M22: -9.526279442 | N22: 5.5 | P22: -0.8660254038 | Q22: 0.5
B23: Current y: | C23: =VLOOKUP($C$20,$F$4:$J$124,5,1) -> 8.660254038 | D23: cm | F23: 19 | G23: 9.5 | H23: 0.9948376736 | I23: 8.386705679 | J23: 5.44639035 | L23: 160 | M23: -10.33661883 | N23: 3.762221577 | P23: -0.9396926208 | Q23: 0.3420201433
B24: Current angle | C24: =VLOOKUP($C$20,$F$4:$J$124,3,1) -> 0.5235987756 | D24: rad | F24: 20 | G24: 10 | H24: 1.047197551 | I24: 8.660254038 | J24: 5 | L24: 170 | M24: -10.83288528 | N24: 1.910129954 | P24: -0.984807753 | Q24: 0.1736481777
F25: 21 | G25: 10.5 | H25: 1.099557429 | I25: 8.910065242 | J25: 4.539904997 | L25: 180 | M25: -11 | N25: 1.3476633e-15 | P25: -1 | Q25: 1.225148455e-16
F26: 22 | G26: 11 | H26: 1.151917306 | I26: 9.135454576 | J26: 4.067366431 | L26: 190 | M26: -10.83288528 | N26: -1.910129954 | P26: -0.984807753 | Q26: -0.1736481777
F27: 23 | G27: 11.5 | H27: 1.204277184 | I27: 9.335804265 | J27: 3.583679495 | L27: 200 | M27: -10.33661883 | N27: -3.762221577 | P27: -0.9396926208 | Q27: -0.3420201433
F28: 24 | G28: 12 | H28: 1.256637061 | I28: 9.510565163 | J28: 3.090169944 | L28: 210 | M28: -9.526279442 | N28: -5.5 | P28: -0.8660254038 | Q28: -0.5
F29: 25 | G29: 12.5 | H29: 1.308996939 | I29: 9.659258263 | J29: 2.588190451 | L29: 220 | M29: -8.426488874 | N29: -7.070663707 | P29: -0.7660444431 | Q29: -0.6427876097
F30: 26 | G30: 13 | H30: 1.361356817 | I30: 9.781476007 | J30: 2.079116908 | L30: 230 | M30: -7.070663707 | N30: -8.426488874 | P30: -0.6427876097 | Q30: -0.7660444431
F31: 27 | G31: 13.5 | H31: 1.413716694 | I31: 9.876883406 | J31: 1.56434465 | L31: 240 | M31: -5.5 | N31: -9.526279442 | P31: -0.5 | Q31: -0.8660254038
F32: 28 | G32: 14 | H32: 1.466076572 | I32: 9.945218954 | J32: 1.045284633 | L32: 250 | M32: -3.762221577 | N32: -10.33661883 | P32: -0.3420201433 | Q32: -0.9396926208
F33: 29 | G33: 14.5 | H33: 1.518436449 | I33: 9.986295348 | J33: 0.5233595624 | L33: 260 | M33: -1.910129954 | N33: -10.83288528 | P33: -0.1736481777 | Q33: -0.984807753
F34: 30 | G34: 15 | H34: 1.570796327 | I34: 10 | J34: 6.125742275e-16 | L34: 270 | M34: -2.021494951e-15 | N34: -11 | P34: -1.837722682e-16 | Q34: -1
F35: 31 | G35: 15.5 | H35: 1.623156204 | I35: 9.986295348 | J35: -0.5233595624 | L35: 280 | M35: 1.910129954 | N35: -10.83288528 | P35: 0.1736481777 | Q35: -0.984807753
F36: 32 | G36: 16 | H36: =C$21*G36 -> 1.675516082 | I36: =C$3*SIN(H36) -> 9.945218954 | J36: =C$3*COS(H36) -> -1.045284633 | L36: 290 | M36: 3.762221577 | N36: -10.33661883 | P36: 0.3420201433 | Q36: -0.9396926208
F37: 33 | G37: =G36+C$5 -> 16.5 | H37: 1.727875959 | I37: 9.876883406 | J37: -1.56434465 | L37: 300 | M37: 5.5 | N37: -9.526279442 | P37: 0.5 | Q37: -0.8660254038
F38: 34 | G38: 17 | H38: 1.780235837 | I38: 9.781476007 | J38: -2.079116908 | L38: 310 | M38: 7.070663707 | N38: -8.426488874 | P38: 0.6427876097 | Q38: -0.7660444431
F39: 35 | G39: 17.5 | H39: 1.832595715 | I39: 9.659258263 | J39: -2.588190451 | L39: 320 | M39: 8.426488874 | N39: -7.070663707 | P39: 0.7660444431 | Q39: -0.6427876097
F40: 36 | G40: 18 | H40: 1.884955592 | I40: 9.510565163 | J40: -3.090169944 | L40: 330 | M40: 9.526279442 | N40: -5.5 | P40: 0.8660254038 | Q40: -0.5
F41: 37 | G41: 18.5 | H41: 1.93731547 | I41: 9.335804265 | J41: -3.583679495 | L41: 340 | M41: 10.33661883 | N41: -3.762221577 | P41: 0.9396926208 | Q41: -0.3420201433
F42: 38 | G42: 19 | H42: 1.989675347 | I42: 9.135454576 | J42: -4.067366431 | L42: 350 | M42: 10.83288528 | N42: -1.910129954 | P42: 0.984807753 | Q42: -0.1736481777
F43: 39 | G43: 19.5 | H43: 2.042035225 | I43: 8.910065242 | J43: -4.539904997 | L43: 360 | M43: 11 | N43: -2.695326601e-15 | P43: 1 | Q43: -2.45029691e-16
F44: 40 | G44: 20 | H44: 2.094395102 | I44: 8.660254038 | J44: -5
F45: 41 | G45: 20.5 | H45: 2.14675498 | I45: 8.386705679 | J45: -5.44639035
F46: 42 | G46: 21 | H46: 2.199114858 | I46: 8.090169944 | J46: -5.877852523
F47: 43 | G47: 21.5 | H47: 2.251474735 | I47: 7.771459615 | J47: -6.29320391
F48: 44 | G48: 22 | H48: 2.303834613 | I48: 7.431448255 | J48: -6.691306064
F49: 45 | G49: 22.5 | H49: 2.35619449 | I49: 7.071067812 | J49: -7.071067812
F50: 46 | G50: 23 | H50: 2.408554368 | I50: 6.691306064 | J50: -7.431448255
F51: 47 | G51: 23.5 | H51: 2.460914245 | I51: 6.29320391 | J51: -7.771459615
F52: 48 | G52: 24 | H52: 2.513274123 | I52: 5.877852523 | J52: -8.090169944
F53: 49 | G53: 24.5 | H53: 2.565634 | I53: 5.44639035 | J53: -8.386705679
F54: 50 | G54: 25 | H54: 2.617993878 | I54: 5 | J54: -8.660254038
F55: 51 | G55: 25.5 | H55: 2.670353756 | I55: 4.539904997 | J55: -8.910065242
F56: 52 | G56: 26 | H56: 2.722713633 | I56: 4.067366431 | J56: -9.135454576
F57: 53 | G57: 26.5 | H57: 2.775073511 | I57: 3.583679495 | J57: -9.335804265
F58: 54 | G58: 27 | H58: 2.827433388 | I58: 3.090169944 | J58: -9.510565163
F59: 55 | G59: 27.5 | H59: 2.879793266 | I59: 2.588190451 | J59: -9.659258263
F60: 56 | G60: 28 | H60: 2.932153143 | I60: 2.079116908 | J60: -9.781476007
F61: 57 | G61: 28.5 | H61: 2.984513021 | I61: 1.56434465 | J61: -9.876883406
F62: 58 | G62: 29 | H62: 3.036872898 | I62: 1.045284633 | J62: -9.945218954
F63: 59 | G63: 29.5 | H63: 3.089232776 | I63: 0.5233595624 | J63: -9.986295348
F64: 60 | G64: 30 | H64: 3.141592654 | I64: 1.225148455e-15 | J64: -10
F65: 61 | G65: 30.5 | H65: 3.193952531 | I65: -0.5233595624 | J65: -9.986295348
F66: 62 | G66: 31 | H66: 3.246312409 | I66: -1.045284633 | J66: -9.945218954
F67: 63 | G67: 31.5 | H67: 3.298672286 | I67: -1.56434465 | J67: -9.876883406
F68: 64 | G68: 32 | H68: =C$21*G68 -> 3.351032164 | I68: =C$3*SIN(H68) -> -2.079116908 | J68: =C$3*COS(H68) -> -9.781476007
F69: 65 | G69: =G68+C$5 -> 32.5 | H69: 3.403392041 | I69: -2.588190451 | J69: -9.659258263
F70: 66 | G70: 33 | H70: 3.455751919 | I70: -3.090169944 | J70: -9.510565163
F71: 67 | G71: 33.5 | H71: 3.508111797 | I71: -3.583679495 | J71: -9.335804265
F72: 68 | G72: 34 | H72: 3.560471674 | I72: -4.067366431 | J72: -9.135454576
F73: 69 | G73: 34.5 | H73: 3.612831552 | I73: -4.539904997 | J73: -8.910065242
F74: 70 | G74: 35 | H74: 3.665191429 | I74: -5 | J74: -8.660254038
F75: 71 | G75: 35.5 | H75: 3.717551307 | I75: -5.44639035 | J75: -8.386705679
F76: 72 | G76: 36 | H76: 3.769911184 | I76: -5.877852523 | J76: -8.090169944
F77: 73 | G77: 36.5 | H77: 3.822271062 | I77: -6.29320391 | J77: -7.771459615
F78: 74 | G78: 37 | H78: 3.874630939 | I78: -6.691306064 | J78: -7.431448255
F79: 75 | G79: 37.5 | H79: 3.926990817 | I79: -7.071067812 | J79: -7.071067812
F80: 76 | G80: 38 | H80: 3.979350695 | I80: -7.431448255 | J80: -6.691306064
F81: 77 | G81: 38.5 | H81: 4.031710572 | I81: -7.771459615 | J81: -6.29320391
F82: 78 | G82: 39 | H82: 4.08407045 | I82: -8.090169944 | J82: -5.877852523
F83: 79 | G83: 39.5 | H83: 4.136430327 | I83: -8.386705679 | J83: -5.44639035
F84: 80 | G84: 40 | H84: 4.188790205 | I84: -8.660254038 | J84: -5
F85: 81 | G85: 40.5 | H85: 4.241150082 | I85: -8.910065242 | J85: -4.539904997
F86: 82 | G86: 41 | H86: 4.29350996 | I86: -9.135454576 | J86: -4.067366431
F87: 83 | G87: 41.5 | H87: 4.345869837 | I87: -9.335804265 | J87: -3.583679495
F88: 84 | G88: 42 | H88: 4.398229715 | I88: -9.510565163 | J88: -3.090169944
F89: 85 | G89: 42.5 | H89: 4.450589593 | I89: -9.659258263 | J89: -2.588190451
F90: 86 | G90: 43 | H90: 4.50294947 | I90: -9.781476007 | J90: -2.079116908
F91: 87 | G91: 43.5 | H91: 4.555309348 | I91: -9.876883406 | J91: -1.56434465
F92: 88 | G92: 44 | H92: 4.607669225 | I92: -9.945218954 | J92: -1.045284633
F93: 89 | G93: 44.5 | H93: 4.660029103 | I93: -9.986295348 | J93: -0.5233595624
F94: 90 | G94: 45 | H94: 4.71238898 | I94: -10 | J94: -1.837722682e-15
F95: 91 | G95: 45.5 | H95: 4.764748858 | I95: -9.986295348 | J95: 0.5233595624
F96: 92 | G96: 46 | H96: 4.817108736 | I96: -9.945218954 | J96: 1.045284633
F97: 93 | G97: 46.5 | H97: 4.869468613 | I97: -9.876883406 | J97: 1.56434465
F98: 94 | G98: 47 | H98: 4.921828491 | I98: -9.781476007 | J98: 2.079116908
F99: 95 | G99: 47.5 | H99: 4.974188368 | I99: -9.659258263 | J99: 2.588190451
F100: 96 | G100: 48 | H100: =C$21*G100 -> 5.026548246 | I100: =C$3*SIN(H100) -> -9.510565163 | J100: =C$3*COS(H100) -> 3.090169944
F101: 97 | G101: =G100+C$5 -> 48.5 | H101: 5.078908123 | I101: -9.335804265 | J101: 3.583679495
F102: 98 | G102: 49 | H102: 5.131268001 | I102: -9.135454576 | J102: 4.067366431
F103: 99 | G103: 49.5 | H103: 5.183627878 | I103: -8.910065242 | J103: 4.539904997
F104: 100 | G104: 50 | H104: 5.235987756 | I104: -8.660254038 | J104: 5
F105: 101 | G105: 50.5 | H105: 5.288347634 | I105: -8.386705679 | J105: 5.44639035
F106: 102 | G106: 51 | H106: 5.340707511 | I106: -8.090169944 | J106: 5.877852523
F107: 103 | G107: 51.5 | H107: 5.393067389 | I107: -7.771459615 | J107: 6.29320391
F108: 104 | G108: 52 | H108: 5.445427266 | I108: -7.431448255 | J108: 6.691306064
F109: 105 | G109: 52.5 | H109: 5.497787144 | I109: -7.071067812 | J109: 7.071067812
F110: 106 | G110: 53 | H110: 5.550147021 | I110: -6.691306064 | J110: 7.431448255
F111: 107 | G111: 53.5 | H111: 5.602506899 | I111: -6.29320391 | J111: 7.771459615
F112: 108 | G112: 54 | H112: 5.654866776 | I112: -5.877852523 | J112: 8.090169944
F113: 109 | G113: 54.5 | H113: 5.707226654 | I113: -5.44639035 | J113: 8.386705679
F114: 110 | G114: 55 | H114: 5.759586532 | I114: -5 | J114: 8.660254038
F115: 111 | G115: 55.5 | H115: 5.811946409 | I115: -4.539904997 | J115: 8.910065242
F116: 112 | G116: 56 | H116: 5.864306287 | I116: -4.067366431 | J116: 9.135454576
F117: 113 | G117: 56.5 | H117: 5.916666164 | I117: -3.583679495 | J117: 9.335804265
F118: 114 | G118: 57 | H118: 5.969026042 | I118: -3.090169944 | J118: 9.510565163
F119: 115 | G119: 57.5 | H119: 6.021385919 | I119: -2.588190451 | J119: 9.659258263
F120: 116 | G120: 58 | H120: 6.073745797 | I120: -2.079116908 | J120: 9.781476007
F121: 117 | G121: 58.5 | H121: 6.126105675 | I121: -1.56434465 | J121: 9.876883406
F122: 118 | G122: 59 | H122: 6.178465552 | I122: -1.045284633 | J122: 9.945218954
F123: 119 | G123: 59.5 | H123: 6.23082543 | I123: -0.5233595624 | J123: 9.986295348
F124: 120 | G124: 60 | H124: 6.283185307 | I124: -2.45029691e-15 | J124: 10

Sheet 3-Clock+Button
I1: Sec. Hand coords
B2: User Controls: | F2: Frame # | G2: Time | H2: theta | I2: Tipx | J2: Tip y | M2: Drawing Data:
B3: Radius | C3: 8 | D3: cm | F3: 0 | G3: 0 | H3: =C$8*G3 -> 0 | I3: =C$3*SIN(H3) -> 0 | J3: =C$3*COS(H3) -> 8
B4: arrow fraction | C4: 0.1 | D4: like a % | F4: 1 | G4: =G3+C$5 -> 0.5 | H4: 0.05235987756 | I4: =C$3*SIN(H4) -> 0.4186876499 | J4: =C$3*COS(H4) -> 7.989036278 | M4: Outer Circle | P4: Inner Circle | S4: Arrow
B5: Time step | C5: 0.5 | D5: s | F5: 2 | G5: 1 | H5: 0.1047197551 | I5: 0.8362277061 | J5: 7.956175163 | L5: angle | M5: x | N5: y | P5: x | Q5: y | S5: x | T5: y
B6: Anim. Speed | C6: 100 | D6: (10 to 200) | F6: 3 | G6: 1.5 | H6: 0.1570796327 | I6: 1.25147572 | J6: 7.901506725 | L6: 0 | M6: =($C$3+1)*COS($L6*PI()/180) -> 9 | N6: =($C$3+1)*SIN($L6*PI()/180) -> 0 | P6: =($C$3/10)*COS($L6*PI()/180) -> 0.8 | Q6: =($C$3/10)*SIN($L6*PI()/180) -> 0 | S6: 0 | T6: 0
F7: 4 | G7: 2 | H7: 0.2094395102 | I7: 1.663293527 | J7: 7.825180806 | L7: 10 | M7: =($C$3+1)*COS($L7*PI()/180) -> 8.863269777 | N7: =($C$3+1)*SIN($L7*PI()/180) -> 1.562833599 | P7: =($C$3/10)*COS($L7*PI()/180) -> 0.7878462024 | Q7: =($C$3/10)*SIN($L7*PI()/180) -> 0.1389185421 | S7: =C10 -> 0 | T7: =C11 -> 8
B8: Omega | C8: =2*PI()/60 -> 0.1047197551 | D8: rad/s | F8: 5 | G8: 2.5 | H8: 0.2617993878 | I8: 2.070552361 | J8: 7.72740661 | L8: 20 | M8: 8.457233587 | N8: 3.07818129 | P8: 0.7517540966 | Q8: 0.2736161147 | S8: =S7-$C$4*$C$3*SIN($C$12-PI()/6) -> 0.4 | T8: =T7-$C$4*$C$3*COS($C$12-PI()/6) -> 7.307179677
B9: Current Index: | C9: 0 | D9: From code! | F9: 6 | G9: 3 | H9: 0.3141592654 | I9: 2.472135955 | J9: 7.60845213 | L9: 30 | M9: 7.794228634 | N9: 4.5 | P9: 0.692820323 | Q9: 0.4 | S9: =S7 -> 0 | T9: =T7 -> 8
B10: Current "x": | C10: =VLOOKUP($C$9,$F$3:$J$123,4,1) -> 0 | D10: cm | F10: 7 | G10: 3.5 | H10: 0.3665191429 | I10: 2.866943596 | J10: 7.468643412 | L10: 40 | M10: 6.894399988 | N10: 5.785088487 | P10: 0.6128355545 | Q10: 0.5142300877 | S10: =S9-$C$4*$C$3*SIN($C$12+PI()/6) -> -0.4 | T10: =T9-$C$4*$C$3*COS($C$12+PI()/6) -> 7.307179677
B11: Current "y": | C11: =VLOOKUP($C$9,$F$3:$J$123,5,1) -> 8 | D11: cm | F11: 8 | G11: 4 | H11: 0.4188790205 | I11: 3.253893145 | J11: 7.308363661 | L11: 50 | M11: 5.785088487 | N11: 6.894399988 | P11: 0.5142300877 | Q11: 0.6128355545
B12: Current angle | C12: =VLOOKUP($C$9,$F$3:$J$123,3,1) -> 0 | D12: rad | F12: 9 | G12: 4.5 | H12: 0.471238898 | I12: 3.631923998 | J12: 7.128052194 | L12: 60 | M12: 4.5 | N12: 7.794228634 | P12: 0.4 | Q12: 0.692820323
F13: 10 | G13: 5 | H13: 0.5235987756 | I13: 4 | J13: 6.92820323 | L13: 70 | M13: 3.07818129 | N13: 8.457233587 | P13: 0.2736161147 | Q13: 0.7517540966
F14: 11 | G14: 5.5 | H14: 0.5759586532 | I14: 4.35711228 | J14: 6.709364544 | L14: 80 | M14: 1.562833599 | N14: 8.863269777 | P14: 0.1389185421 | Q14: 0.7878462024
F15: 12 | G15: 6 | H15: 0.6283185307 | I15: 4.702282018 | J15: 6.472135955 | L15: 90 | M15: 5.513168047e-16 | N15: 9 | P15: 4.90059382e-17 | Q15: 0.8
F16: 13 | G16: 6.5 | H16: 0.6806784083 | I16: 5.034563128 | J16: 6.217167692 | L16: 100 | M16: -1.562833599 | N16: 8.863269777 | P16: -0.1389185421 | Q16: 0.7878462024
B17: Notes: Normally, when you drag cells to | F17: 14 | G17: 7 | H17: 0.7330382858 | I17: 5.353044851 | J17: 5.945158604 | L17: 110 | M17: -3.07818129 | N17: 8.457233587 | P17: -0.2736161147 | Q17: 0.7517540966
B18: a new location, all other cells that refer | F18: 15 | G18: 7.5 | H18: 0.7853981634 | I18: 5.656854249 | J18: 5.656854249 | L18: 120 | M18: -4.5 | N18: 7.794228634 | P18: -0.4 | Q18: 0.692820323
B19: to them will automatically update along | F19: 16 | G19: 8 | H19: 0.837758041 | I19: 5.945158604 | J19: 5.353044851 | L19: 130 | M19: -5.785088487 | N19: 6.894399988 | P19: -0.5142300877 | Q19: 0.6128355545
B20: with the drag. However, that's not true | F20: 17 | G20: 8.5 | H20: 0.8901179185 | I20: 6.217167692 | J20: 5.034563128 | L20: 140 | M20: -6.894399988 | N20: 5.785088487 | P20: -0.6128355545 | Q20: 0.5142300877
B21: for cell references made in Visual | F21: 18 | G21: 9 | H21: 0.9424777961 | I21: 6.472135955 | J21: 4.702282018 | L21: 150 | M21: -7.794228634 | N21: 4.5 | P21: -0.692820323 | Q21: 0.4
B22: Basic code/macros. The code for this | F22: 19 | G22: 9.5 | H22: 0.9948376736 | I22: 6.709364544 | J22: 4.35711228 | L22: 160 | M22: -8.457233587 | N22: 3.07818129 | P22: -0.7517540966 | Q22: 0.2736161147
B23: "Start" button refers to cells C6, C9, and | F23: 20 | G23: 10 | H23: 1.047197551 | I23: 6.92820323 | J23: 4 | L23: 170 | M23: -8.863269777 | N23: 1.562833599 | P23: -0.7878462024 | Q23: 0.1389185421
B24: C10. So if you move any of those cells, | F24: 21 | G24: 10.5 | H24: 1.099557429 | I24: 7.128052194 | J24: 3.631923998 | L24: 180 | M24: -9 | N24: 1.102633609e-15 | P24: -0.8 | Q24: 9.801187639e-17
B25: you'll need to manually update the code. | F25: 22 | G25: 11 | H25: 1.151917306 | I25: 7.308363661 | J25: 3.253893145 | L25: 190 | M25: -8.863269777 | N25: -1.562833599 | P25: -0.7878462024 | Q25: -0.1389185421
F26: 23 | G26: 11.5 | H26: 1.204277184 | I26: 7.468643412 | J26: 2.866943596 | L26: 200 | M26: -8.457233587 | N26: -3.07818129 | P26: -0.7517540966 | Q26: -0.2736161147
F27: 24 | G27: 12 | H27: 1.256637061 | I27: 7.60845213 | J27: 2.472135955 | L27: 210 | M27: -7.794228634 | N27: -4.5 | P27: -0.692820323 | Q27: -0.4
F28: 25 | G28: 12.5 | H28: 1.308996939 | I28: 7.72740661 | J28: 2.070552361 | L28: 220 | M28: -6.894399988 | N28: -5.785088487 | P28: -0.6128355545 | Q28: -0.5142300877
F29: 26 | G29: 13 | H29: 1.361356817 | I29: 7.825180806 | J29: 1.663293527 | L29: 230 | M29: -5.785088487 | N29: -6.894399988 | P29: -0.5142300877 | Q29: -0.6128355545
F30: 27 | G30: 13.5 | H30: 1.413716694 | I30: 7.901506725 | J30: 1.25147572 | L30: 240 | M30: -4.5 | N30: -7.794228634 | P30: -0.4 | Q30: -0.692820323
F31: 28 | G31: 14 | H31: 1.466076572 | I31: 7.956175163 | J31: 0.8362277061 | L31: 250 | M31: -3.07818129 | N31: -8.457233587 | P31: -0.2736161147 | Q31: -0.7517540966
F32: 29 | G32: 14.5 | H32: 1.518436449 | I32: 7.989036278 | J32: 0.4186876499 | L32: 260 | M32: -1.562833599 | N32: -8.863269777 | P32: -0.1389185421 | Q32: -0.7878462024
F33: 30 | G33: 15 | H33: 1.570796327 | I33: 8 | J33: 4.90059382e-16 | L33: 270 | M33: -1.653950414e-15 | N33: -9 | P33: -1.470178146e-16 | Q33: -0.8
F34: 31 | G34: 15.5 | H34: 1.623156204 | I34: 7.989036278 | J34: -0.4186876499 | L34: 280 | M34: 1.562833599 | N34: -8.863269777 | P34: 0.1389185421 | Q34: -0.7878462024
F35: 32 | G35: 16 | H35: =C$8*G35 -> 1.675516082 | I35: 7.956175163 | J35: -0.8362277061 | L35: 290 | M35: 3.07818129 | N35: -8.457233587 | P35: 0.2736161147 | Q35: -0.7517540966
F36: 33 | G36: =G35+C$5 -> 16.5 | H36: 1.727875959 | I36: 7.901506725 | J36: -1.25147572 | L36: 300 | M36: 4.5 | N36: -7.794228634 | P36: 0.4 | Q36: -0.692820323
F37: 34 | G37: 17 | H37: 1.780235837 | I37: 7.825180806 | J37: -1.663293527 | L37: 310 | M37: 5.785088487 | N37: -6.894399988 | P37: 0.5142300877 | Q37: -0.6128355545
F38: 35 | G38: 17.5 | H38: 1.832595715 | I38: 7.72740661 | J38: -2.070552361 | L38: 320 | M38: 6.894399988 | N38: -5.785088487 | P38: 0.6128355545 | Q38: -0.5142300877
F39: 36 | G39: 18 | H39: 1.884955592 | I39: 7.60845213 | J39: -2.472135955 | L39: 330 | M39: 7.794228634 | N39: -4.5 | P39: 0.692820323 | Q39: -0.4
F40: 37 | G40: 18.5 | H40: 1.93731547 | I40: 7.468643412 | J40: -2.866943596 | L40: 340 | M40: 8.457233587 | N40: -3.07818129 | P40: 0.7517540966 | Q40: -0.2736161147
F41: 38 | G41: 19 | H41: 1.989675347 | I41: 7.308363661 | J41: -3.253893145 | L41: 350 | M41: 8.863269777 | N41: -1.562833599 | P41: 0.7878462024 | Q41: -0.1389185421
F42: 39 | G42: 19.5 | H42: 2.042035225 | I42: 7.128052194 | J42: -3.631923998 | L42: 360 | M42: 9 | N42: -2.205267219e-15 | P42: 0.8 | Q42: -1.960237528e-16
F43: 40 | G43: 20 | H43: 2.094395102 | I43: 6.92820323 | J43: -4
F44: 41 | G44: 20.5 | H44: 2.14675498 | I44: 6.709364544 | J44: -4.35711228
F45: 42 | G45: 21 | H45: 2.199114858 | I45: 6.472135955 | J45: -4.702282018
F46: 43 | G46: 21.5 | H46: 2.251474735 | I46: 6.217167692 | J46: -5.034563128
F47: 44 | G47: 22 | H47: 2.303834613 | I47: 5.945158604 | J47: -5.353044851
F48: 45 | G48: 22.5 | H48: 2.35619449 | I48: 5.656854249 | J48: -5.656854249
F49: 46 | G49: 23 | H49: 2.408554368 | I49: 5.353044851 | J49: -5.945158604
F50: 47 | G50: 23.5 | H50: 2.460914245 | I50: 5.034563128 | J50: -6.217167692
F51: 48 | G51: 24 | H51: 2.513274123 | I51: 4.702282018 | J51: -6.472135955
F52: 49 | G52: 24.5 | H52: 2.565634 | I52: 4.35711228 | J52: -6.709364544
F53: 50 | G53: 25 | H53: 2.617993878 | I53: 4 | J53: -6.92820323
F54: 51 | G54: 25.5 | H54: 2.670353756 | I54: 3.631923998 | J54: -7.128052194
F55: 52 | G55: 26 | H55: 2.722713633 | I55: 3.253893145 | J55: -7.308363661
F56: 53 | G56: 26.5 | H56: 2.775073511 | I56: 2.866943596 | J56: -7.468643412
F57: 54 | G57: 27 | H57: 2.827433388 | I57: 2.472135955 | J57: -7.60845213
F58: 55 | G58: 27.5 | H58: 2.879793266 | I58: 2.070552361 | J58: -7.72740661
F59: 56 | G59: 28 | H59: 2.932153143 | I59: 1.663293527 | J59: -7.825180806
F60: 57 | G60: 28.5 | H60: 2.984513021 | I60: 1.25147572 | J60: -7.901506725
F61: 58 | G61: 29 | H61: 3.036872898 | I61: 0.8362277061 | J61: -7.956175163
F62: 59 | G62: 29.5 | H62: 3.089232776 | I62: 0.4186876499 | J62: -7.989036278
F63: 60 | G63: 30 | H63: 3.141592654 | I63: 9.801187639e-16 | J63: -8
F64: 61 | G64: 30.5 | H64: 3.193952531 | I64: -0.4186876499 | J64: -7.989036278
F65: 62 | G65: 31 | H65: 3.246312409 | I65: -0.8362277061 | J65: -7.956175163
F66: 63 | G66: 31.5 | H66: 3.298672286 | I66: -1.25147572 | J66: -7.901506725
F67: 64 | G67: 32 | H67: =C$8*G67 -> 3.351032164 | I67: -1.663293527 | J67: -7.825180806
F68: 65 | G68: =G67+C$5 -> 32.5 | H68: 3.403392041 | I68: =C$3*SIN(H68) -> -2.070552361 | J68: =C$3*COS(H68) -> -7.72740661
F69: 66 | G69: 33 | H69: 3.455751919 | I69: -2.472135955 | J69: -7.60845213
F70: 67 | G70: 33.5 | H70: 3.508111797 | I70: -2.866943596 | J70: -7.468643412
F71: 68 | G71: 34 | H71: 3.560471674 | I71: -3.253893145 | J71: -7.308363661
F72: 69 | G72: 34.5 | H72: 3.612831552 | I72: -3.631923998 | J72: -7.128052194
F73: 70 | G73: 35 | H73: 3.665191429 | I73: -4 | J73: -6.92820323
F74: 71 | G74: 35.5 | H74: 3.717551307 | I74: -4.35711228 | J74: -6.709364544
F75: 72 | G75: 36 | H75: 3.769911184 | I75: -4.702282018 | J75: -6.472135955
F76: 73 | G76: 36.5 | H76: 3.822271062 | I76: -5.034563128 | J76: -6.217167692
F77: 74 | G77: 37 | H77: 3.874630939 | I77: -5.353044851 | J77: -5.945158604
F78: 75 | G78: 37.5 | H78: 3.926990817 | I78: -5.656854249 | J78: -5.656854249
F79: 76 | G79: 38 | H79: 3.979350695 | I79: -5.945158604 | J79: -5.353044851
F80: 77 | G80: 38.5 | H80: 4.031710572 | I80: -6.217167692 | J80: -5.034563128
F81: 78 | G81: 39 | H81: 4.08407045 | I81: -6.472135955 | J81: -4.702282018
F82: 79 | G82: 39.5 | H82: 4.136430327 | I82: -6.709364544 | J82: -4.35711228
F83: 80 | G83: 40 | H83: 4.188790205 | I83: -6.92820323 | J83: -4
F84: 81 | G84: 40.5 | H84: 4.241150082 | I84: -7.128052194 | J84: -3.631923998
F85: 82 | G85: 41 | H85: 4.29350996 | I85: -7.308363661 | J85: -3.253893145
F86: 83 | G86: 41.5 | H86: 4.345869837 | I86: -7.468643412 | J86: -2.866943596
F87: 84 | G87: 42 | H87: 4.398229715 | I87: -7.60845213 | J87: -2.472135955
F88: 85 | G88: 42.5 | H88: 4.450589593 | I88: -7.72740661 | J88: -2.070552361
F89: 86 | G89: 43 | H89: 4.50294947 | I89: -7.825180806 | J89: -1.663293527
F90: 87 | G90: 43.5 | H90: 4.555309348 | I90: -7.901506725 | J90: -1.25147572
F91: 88 | G91: 44 | H91: 4.607669225 | I91: -7.956175163 | J91: -0.8362277061
F92: 89 | G92: 44.5 | H92: 4.660029103 | I92: -7.989036278 | J92: -0.4186876499
F93: 90 | G93: 45 | H93: 4.71238898 | I93: -8 | J93: -1.470178146e-15
F94: 91 | G94: 45.5 | H94: 4.764748858 | I94: -7.989036278 | J94: 0.4186876499
F95: 92 | G95: 46 | H95: 4.817108736 | I95: -7.956175163 | J95: 0.8362277061
F96: 93 | G96: 46.5 | H96: 4.869468613 | I96: -7.901506725 | J96: 1.25147572
F97: 94 | G97: 47 | H97: 4.921828491 | I97: -7.825180806 | J97: 1.663293527
F98: 95 | G98: 47.5 | H98: 4.974188368 | I98: -7.72740661 | J98: 2.070552361
F99: 96 | G99: 48 | H99: =C$8*G99 -> 5.026548246 | I99: -7.60845213 | J99: 2.472135955
F100: 97 | G100: =G99+C$5 -> 48.5 | H100: 5.078908123 | I100: -7.468643412 | J100: 2.866943596
F101: 98 | G101: 49 | H101: 5.131268001 | I101: -7.308363661 | J101: 3.253893145
F102: 99 | G102: 49.5 | H102: 5.183627878 | I102: -7.128052194 | J102: 3.631923998
F103: 100 | G103: 50 | H103: 5.235987756 | I103: -6.92820323 | J103: 4
F104: 101 | G104: 50.5 | H104: 5.288347634 | I104: -6.709364544 | J104: 4.35711228
F105: 102 | G105: 51 | H105: 5.340707511 | I105: -6.472135955 | J105: 4.702282018
F106: 103 | G106: 51.5 | H106: 5.393067389 | I106: -6.217167692 | J106: 5.034563128
F107: 104 | G107: 52 | H107: 5.445427266 | I107: -5.945158604 | J107: 5.353044851
F108: 105 | G108: 52.5 | H108: 5.497787144 | I108: -5.656854249 | J108: 5.656854249
F109: 106 | G109: 53 | H109: 5.550147021 | I109: -5.353044851 | J109: 5.945158604
F110: 107 | G110: 53.5 | H110: 5.602506899 | I110: -5.034563128 | J110: 6.217167692
F111: 108 | G111: 54 | H111: 5.654866776 | I111: -4.702282018 | J111: 6.472135955
F112: 109 | G112: 54.5 | H112: 5.707226654 | I112: -4.35711228 | J112: 6.709364544
F113: 110 | G113: 55 | H113: 5.759586532 | I113: -4 | J113: 6.92820323
F114: 111 | G114: 55.5 | H114: 5.811946409 | I114: -3.631923998 | J114: 7.128052194
F115: 112 | G115: 56 | H115: 5.864306287 | I115: -3.253893145 | J115: 7.308363661
F116: 113 | G116: 56.5 | H116: 5.916666164 | I116: -2.866943596 | J116: 7.468643412
F117: 114 | G117: 57 | H117: 5.969026042 | I117: -2.472135955 | J117: 7.60845213
F118: 115 | G118: 57.5 | H118: 6.021385919 | I118: -2.070552361 | J118: 7.72740661
F119: 116 | G119: 58 | H119: 6.073745797 | I119: -1.663293527 | J119: 7.825180806
F120: 117 | G120: 58.5 | H120: 6.126105675 | I120: -1.25147572 | J120: 7.901506725
F121: 118 | G121: 59 | H121: 6.178465552 | I121: -0.8362277061 | J121: 7.956175163
F122: 119 | G122: 59.5 | H122: 6.23082543 | I122: -0.4186876499 | J122: 7.989036278
F123: 120 | G123: 60 | H123: 6.283185307 | I123: -1.960237528e-15 | J123: 8

Sheet 4-Incline+button
B2: User Input Space: | I2: Simulation Space
B3: Hill Angle q: | C3: 39 | D3: deg | F3: User might need to | I3: Frame # | J3: time | K3: z, "EQ 4" | P3: Drawings Space | R3: Box: flat at origin | T3: Rotated & Offset
B4: Starting speed v0 | C4: 4 | D4: m/s "uphill" | F4: press "Reset" to see | I4: 0 | J4: =I4*Q$21 -> 0 | K4: =Q$17+C$4*J4+0.5*Q$18*J4^2 -> 0.3178031458 | P4: Hill: x | Q4: Hill: y | R4: x | S4: y | T4: x | U4: y
B5: Starting height h0 | C5: 0.2 | D5: m | F5: impact of changing | I5: 1 | J5: 0.0137225821 | K5: 0.3721127906 | P5: 0 | Q5: 0 | R5: 0 | S5: 0 | T5: =R5*$Q$23-S5*$Q$22+$Q$25*$Q$23 -> 0.2469794313 | U5: =R5*$Q$22+S5*$Q$23+$Q$25*$Q$22 -> 0.2
B6: Box size w | C6: 0.2 | D6: m | F6: these inputs… | I6: 2 | J6: 0.02744516421 | K6: 0.4252610682 | P6: =Q14 -> 2 | Q6: 0 | R6: =C6 -> 0.2 | S6: 0 | T6: =R6*$Q$23-S6*$Q$22+$Q$25*$Q$23 -> 0.4024086236 | U6: =R6*$Q$22+S6*$Q$23+$Q$25*$Q$22 -> 0.3258640782
B7: g | C7: 9.8 | D7: m/s2 | I7: 3 | J7: 0.04116774631 | K7: 0.4772479787 | P7: =Q14 -> 2 | Q7: =Q15 -> 1.619568066 | R7: =C6 -> 0.2 | S7: =R7 -> 0.2 | T7: =R7*$Q$23-S7*$Q$22+$Q$25*$Q$23 -> 0.2765445454 | U7: =R7*$Q$22+S7*$Q$23+$Q$25*$Q$22 -> 0.4812932705
B8: Current Frame? | C8: 0 | D8: (0 to 100) | I8: 4 | J8: 0.05489032841 | K8: 0.5280735219 | P8: 0 | Q8: 0 | R8: 0 | S8: =S7 -> 0.2 | T8: =R8*$Q$23-S8*$Q$22+$Q$25*$Q$23 -> 0.1211153531 | U8: =R8*$Q$22+S8*$Q$23+$Q$25*$Q$22 -> 0.3554291923
B9: Animation Speed | C9: 50 | D9: (10 to 100) | I9: 5 | J9: 0.06861291052 | K9: 0.5777376979 | R9: 0 | S9: 0 | T9: =R9*$Q$23-S9*$Q$22+$Q$25*$Q$23 -> 0.2469794313 | U9: =R9*$Q$22+S9*$Q$23+$Q$25*$Q$22 -> 0.2
I10: 6 | J10: 0.08233549262 | K10: 0.6262405067
I11: 7 | J11: 0.09605807472 | K11: 0.6735819484 | P11: Calculations Space:
I12: 8 | J12: 0.1097806568 | K12: 0.7197620228 | P12: q check | Q12: =MIN(C3,45) -> 39 | R12: deg
B13: Some Comments: | I13: 9 | J13: 0.1235032389 | K13: 0.76478073 | P13: q | Q13: =Q12*PI()/180 -> 0.6806784083 | R13: rad
B14: See the handout on the course homepage for more | I14: 10 | J14: 0.137225821 | K14: 0.8086380701 | P14: Hill width x | Q14: 2 | R14: m
B15: info about the physics used here. | I15: 11 | J15: 0.1509484031 | K15: 0.8513340429 | P15: Hill peak hmax | Q15: =Q14*TAN(Q13) -> 1.619568066 | R15: m
B16: The position of the box is really just the position | I16: 12 | J16: 0.1646709852 | K16: 0.8928686486 | P16: h0 true | Q16: =MIN(C5,Q15) -> 0.2 | R16: m
B17: of its lower left corner. | I17: 13 | J17: 0.1783935673 | K17: 0.933241887 | P17: z0 | Q17: =Q16/SIN(Q13) -> 0.3178031458 | R17: m
B18: Unlike the clock, where the user was able to choose | I18: 14 | J18: 0.1921161494 | K18: 0.9724537583 | P18: az | Q18: =-C7*SIN(Q13) -> -6.167339832 | R18: m/s2 | S18: EQ 1
B19: the time step between frames, I am instead auto- | I19: 15 | J19: 0.2058387316 | K19: 1.010504262 | P19: vbottom | Q19: =-SQRT(C4^2-2*Q18*Q17) -> -4.463182721 | R19: m/s | S19: EQ 3
B20: calculating it here. First, I find the true duration of | I20: 16 | J20: 0.2195613137 | K20: 1.047393399 | P20: tbottom | Q20: =(Q19-C4)/Q18 -> 1.37225821 | R20: s; "duration" | S20: EQ 2
B21: the simulation. Then, I divide that duration by 100 | I21: 17 | J21: 0.2332838958 | K21: 1.083121169 | P21: Dt | Q21: =Q20/100 -> 0.0137225821 | R21: s
B22: to get the time step between frames. | I22: 18 | J22: 0.2470064779 | K22: 1.117687571 | P22: sinq | Q22: =SIN(Q13) -> 0.629320391
B23: The drawing of the hill is only 2m "wide" at the base. | I23: 19 | J23: 0.26072906 | K23: 1.151092607 | P23: cosq | Q23: =COS(Q13) -> 0.7771459615
B24: Since the user might choose some unreasonable | I24: 20 | J24: 0.2744516421 | K24: 1.183336275 | P24: Picked out t | Q24: =VLOOKUP($C$8,$I$4:$K$104,2) -> 0
B25: values, I am using cells (not VB code) to make | I25: 21 | J25: 0.2881742242 | K25: 1.214418575 | P25: Picked out z | Q25: =VLOOKUP($C$8,$I$4:$K$104,3) -> 0.3178031458
B26: sure that if the user enters an angle greater than | I26: 22 | J26: 0.3018968063 | K26: 1.244339509
B27: 45 degrees, the simulation will only use 45 degrees. | I27: 23 | J27: 0.3156193884 | K27: 1.273099076
B28: For reference, the macros use only cells C8 and C9 | I28: 24 | J28: 0.3293419705 | K28: 1.300697275 | T28: EQ 4
I29: 25 | J29: 0.3430645526 | K29: 1.327134107
I30: 26 | J30: 0.3567871347 | K30: 1.352409572
I31: 27 | J31: 0.3705097168 | K31: 1.37652367
I32: 28 | J32: 0.3842322989 | K32: 1.3994764
I33: 29 | J33: 0.397954881 | K33: 1.421267763
I34: 30 | J34: 0.4116774631 | K34: 1.441897759
I35: 31 | J35: 0.4254000452 | K35: 1.461366388
I36: 32 | J36: =I36*Q$21 -> 0.4391226273 | K36: =Q$17+C$4*J36+0.5*Q$18*J36^2 -> 1.47967365
I37: 33 | J37: 0.4528452094 | K37: 1.496819544
I38: 34 | J38: 0.4665677915 | K38: 1.512804072
I39: 35 | J39: 0.4802903736 | K39: 1.527627232
I40: 36 | J40: 0.4940129557 | K40: 1.541289025
I41: 37 | J41: 0.5077355378 | K41: 1.55378945
I42: 38 | J42: 0.5214581199 | K42: 1.565128509
I43: 39 | J43: 0.535180702 | K43: 1.5753062
I44: 40 | J44: 0.5489032841 | K44: 1.584322524
I45: 41 | J45: 0.5626258662 | K45: 1.592177481
I46: 42 | J46: 0.5763484483 | K46: 1.598871071
I47: 43 | J47: 0.5900710305 | K47: 1.604403294
I48: 44 | J48: 0.6037936126 | K48: 1.608774149
I49: 45 | J49: 0.6175161947 | K49: 1.611983637
I50: 46 | J50: 0.6312387768 | K50: 1.614031758
I51: 47 | J51: 0.6449613589 | K51: 1.614918512
I52: 48 | J52: 0.658683941 | K52: 1.614643898
I53: 49 | J53: 0.6724065231 | K53: 1.613207918
I54: 50 | J54: 0.6861291052 | K54: 1.61061057
I55: 51 | J55: 0.6998516873 | K55: 1.606851855
I56: 52 | J56: 0.7135742694 | K56: 1.601931772
I57: 53 | J57: 0.7272968515 | K57: 1.595850323
I58: 54 | J58: 0.7410194336 | K58: 1.588607506
I59: 55 | J59: 0.7547420157 | K59: 1.580203322
I60: 56 | J60: 0.7684645978 | K60: 1.570637771
I61: 57 | J61: 0.7821871799 | K61: 1.559910853
I62: 58 | J62: 0.795909762 | K62: 1.548022568
I63: 59 | J63: 0.8096323441 | K63: 1.534972915
I64: 60 | J64: 0.8233549262 | K64: 1.520761895
I65: 61 | J65: 0.8370775083 | K65: 1.505389508
I66: 62 | J66: 0.8508000904 | K66: 1.488855754
I67: 63 | J67: 0.8645226725 | K67: 1.471160633
I68: 64 | J68: =I68*Q$21 -> 0.8782452546 | K68: =Q$17+C$4*J68+0.5*Q$18*J68^2 -> 1.452304144
I69: 65 | J69: 0.8919678367 | K69: 1.432286288
I70: 66 | J70: 0.9056904188 | K70: 1.411107065
I71: 67 | J71: 0.9194130009 | K71: 1.388766475
I72: 68 | J72: 0.933135583 | K72: 1.365264517
I73: 69 | J73: 0.9468581651 | K73: 1.340601193
I74: 70 | J74: 0.9605807472 | K74: 1.314776501
I75: 71 | J75: 0.9743033293 | K75: 1.287790442
I76: 72 | J76: 0.9880259115 | K76: 1.259643016
I77: 73 | J77: 1.001748494 | K77: 1.230334222
I78: 74 | J78: 1.015471076 | K78: 1.199864062
I79: 75 | J79: 1.029193658 | K79: 1.168232534
I80: 76 | J80: 1.04291624 | K80: 1.135439639
I81: 77 | J81: 1.056638822 | K81: 1.101485377
I82: 78 | J82: 1.070361404 | K82: 1.066369747
I83: 79 | J83: 1.084083986 | K83: 1.030092751
I84: 80 | J84: 1.097806568 | K84: 0.9926543871
I85: 81 | J85: 1.11152915 | K85: 0.9540546561
I86: 82 | J86: 1.125251732 | K86: 0.914293558
I87: 83 | J87: 1.138974315 | K87: 0.8733710926
I88: 84 | J88: 1.152696897 | K88: 0.83128726
I89: 85 | J89: 1.166419479 | K89: 0.7880420602
I90: 86 | J90: 1.180142061 | K90: 0.7436354933
I91: 87 | J91: 1.193864643 | K91: 0.6980675591
I92: 88 | J92: 1.207587225 | K92: 0.6513382577
I93: 89 | J93: 1.221309807 | K93: 0.6034475892
I94: 90 | J94: 1.235032389 | K94: 0.5543955534
I95: 91 | J95: 1.248754971 | K95: 0.5041821505
I96: 92 | J96: 1.262477554 | K96: 0.4528073803
I97: 93 | J97: 1.276200136 | K97: 0.400271243
I98: 94 | J98: 1.289922718 | K98: 0.3465737384
I99: 95 | J99: 1.3036453 | K99: 0.2917148667
I100: 96 | J100: =I100*Q$21 -> 1.317367882 | K100: =Q$17+C$4*J100+0.5*Q$18*J100^2 -> 0.2356946277
I101: 97 | J101: 1.331090464 | K101: 0.1785130216
I102: 98 | J102: 1.344813046 | K102: 0.1201700483
I103: 99 | J103: 1.358535628 | K103: 0.06066570773
I104: 100 | J104: 1.37225821 | K104: 0
